bitfinex/quotes_ETHUSD_20260121
["timestamp","ask_amount","ask_price","bid_price","bid_amount"]
[1769035288228,0.09406892,3017.2,3016.4,2.16523758]
[1769035290335,0.002,3017.2,3016.5,1.61723758]
[1769035291739,0.002,3017.2,3016.6,1.54124803]
[1769035291949,0.002,3017.2,3016.8,0.001]
[1769035292327,0.002,3016.9,3016.8,0.001]
[1769035292506,0.002,3017.2,3016.8,0.001]
[1769035295634,0.002,3017.2,3016.8,1.54224803]
[1769035295838,0.002,3017.2,3016.9,0.48570976]
[1769035298043,0.002,3017.2,3016.8,0.001]
[1769035304647,0.002,3016.9,3016.8,1.54224803]
[1769035304821,0.002,3017.2,3016.8,1.54224803]
[1769035311559,0.002,3017.2,3016.8,4.85701572]
[1769035311767,0.002,3017.5,3016.9,1.54124803]
[1769035312066,0.002,3017.5,3017.1,1.54124803]
[1769035312273,0.002,3017.5,3017.0,0.48570157]
[1769035316274,0.002,3017.2,3017.0,0.48570157]
[1769035318381,0.002,3017.2,3017.1,0.03314441]
[1769035320186,0.002,3017.2,3017.1,0.23915381]
[1769035320390,0.002,3017.5,3017.1,0.23915381]
[1769035320587,0.002,3017.5,3017.1,0.03314441]
[1769035321291,0.002,3017.5,3017.0,0.48570157]
[1769035321590,0.002,3017.5,3017.0,2.07297238]
[1769035328667,0.002,3017.2,3017.0,2.07297238]
[1769035328868,0.002,3017.5,3017.1,1.58727081]
[1769035334235,0.002,3017.5,3016.7,4.78083675]
[1769035334236,1.59998709,3017.1,3015.9,3.31575867]
[1769035334538,0.09206892,3017.0,3015.8,1.58727081]
[1769035334719,1.59998709,3016.9,3015.9,0.548]
[1769035335608,1.69205601,3016.8,3016.0,0.548]
[1769035335804,1.76919269,3016.7,3016.0,0.548]
[1769035339020,1.76919269,3016.7,3015.9,0.548]
[1769035340312,1.76919269,3016.7,3016.2,0.001]
[1769035352265,0.002,3016.4,3016.2,0.001]
[1769035362183,0.002,3016.7,3016.2,1.56618305]
[1769035363357,0.002,3017.2,3016.4,1.56518305]
[1769035363580,0.002,3017.2,3016.8,1.56518305]
[1769035364950,0.002,3017.2,3016.9,1.56518305]
[1769035365174,0.002,3017.5,3016.9,1.56518305]
[1769035365352,0.002,3017.5,3017.0,0.548]
[1769035365548,0.002,3017.5,3017.1,1.77650135]
[1769035368203,0.002,3017.5,3017.1,5.09093164]
[1769035368484,1.62129715,3018.0,3017.4,1.56518305]
[1769035368485,0.002,3018.0,3017.4,1.56518305]
[1769035368783,0.002,3018.0,3017.3,4.23283675]
[1769035368784,0.002,3018.0,3017.6,1.56518305]
[1769035369769,1.71336607,3018.5,3017.7,1.56518305]
[1769035369770,0.002,3018.5,3017.7,1.56518305]
[1769035370559,0.002,3018.5,3017.9,1.56518305]
[1769035370890,0.002,3018.5,3018.1,1.56518305]
[1769035371058,0.002,3018.5,3018.1,1.77650135]
[1769035373786,1.61929715,3019.1,3018.1,1.77650135]
[1769035373967,1.61929715,3019.3,3018.1,1.77650135]
[1769035374164,1.61929715,3019.3,3018.2,1.56518305]
[1769035374360,1.61929715,3019.5,3018.3,1.56518305]
[1769035374561,1.61929715,3019.5,3018.5,1.56518305]
[1769035374762,0.49310377,3019.4,3018.5,1.56518305]
[1769035380191,2.16087682,3019.4,3018.5,1.56518305]
[1769035380606,1.66777305,3019.3,3018.3,3.31307673]
[1769035380896,1.66777305,3019.3,3018.4,1.63448425]
[1769035381080,0.49310377,3019.4,3018.6,1.61173071]
[1769035381477,1.5313095,3019.0,3018.4,0.548]
[1769035381773,1.5313095,3018.2,3017.0,0.548]
[1769035381973,1.5313095,3018.0,3017.1,0.63881415]
[1769035382183,1.5313095,3018.0,3016.8,0.548]
[1769035382376,0.09206892,3017.8,3016.3,1.61173071]
[1769035382575,1.5313095,3017.5,3016.4,3.86317621]
[1769035382990,1.62337842,3017.6,3016.5,4.92679019]
[1769035383169,1.62337842,3017.6,3016.6,0.49267902]
[1769035384477,1.5313095,3017.5,3016.6,0.49267902]
[1769035384679,1.5313095,3017.5,3016.4,1.61173071]
[1769035385195,0.09206892,3017.4,3016.4,1.61173071]
[1769035386008,0.09206892,3017.4,3016.4,4.926934]
[1769035386195,0.09206892,3017.4,3016.4,1.61173071]
[1769035387504,0.09206892,3017.4,3016.4,4.92693501]
[1769035387704,0.09206892,3017.4,3016.5,2.15922421]
[1769035388711,1.62337842,3017.4,3016.5,2.15922421]
[1769035388892,1.62337842,3017.4,3016.5,1.61173071]
[1769035389911,1.62337842,3017.4,3016.8,0.001]
[1769035399656,4.93751471,3017.4,3016.8,0.001]
[1769035399845,3.40620521,3017.4,3016.8,0.001]
[1769035400045,0.09206892,3017.4,3016.8,0.001]
[1769035400347,0.34061256,3017.3,3016.8,0.001]
[1769035401663,0.34061256,3017.3,3016.9,0.001]
[1769035413084,0.09206892,3017.6,3016.9,1.62025051]
[1769035413267,0.09206892,3017.6,3017.1,0.001]
[1769035415876,4.87469598,3017.7,3017.1,0.001]
[1769035415877,0.09206892,3017.7,3017.1,1.62025051]
[1769035416055,0.59792583,3017.7,3017.1,1.62025051]
[1769035416256,0.59792583,3017.7,3017.1,0.001]
[1769035416257,0.09206892,3017.7,3017.1,0.001]
[1769035418098,3.40590732,3017.7,3017.1,0.001]
[1769035418275,4.96672069,3017.7,3017.1,0.001]
[1769035423119,0.09206892,3017.5,3017.1,0.001]
[1769035423410,0.09206892,3017.3,3016.3,1.61925051]
[1769035423708,0.09206892,3017.3,3016.4,1.61925051]
[1769035425305,1.65288229,3017.3,3016.4,1.61925051]
[1769035425706,0.09206892,3017.3,3016.4,1.61925051]
[1769035425901,0.3406237,3017.2,3016.4,1.61925051]
[1769035427404,1.65288229,3017.1,3016.2,1.62025051]
[1769035427596,0.09206892,3016.9,3016.2,0.001]
[1769035427796,0.09206892,3016.9,3015.1,1.61925051]
[1769035427797,1.56081337,3016.3,3015.1,1.61925051]
[1769035428008,1.65288229,3016.2,3015.1,1.61925051]
[1769035428389,1.65288229,3016.2,3015.0,7.54510567]
[1769035428586,1.65288229,3016.2,3015.3,3.31632838]
[1769035428803,1.65288229,3016.2,3015.4,3.31624916]
[1769035430780,1.56081337,3015.9,3014.8,3.31692171]
[1769035430981,1.65288229,3015.8,3014.8,3.31692171]
[1769035431198,1.65288229,3015.8,3014.6,1.61925051]
[1769035431199,1.65288229,3015.8,3014.9,0.33169217]
[1769035431413,1.65288229,3015.8,3014.8,3.31692533]
[1769035431815,0.09206892,3015.6,3014.8,3.31692533]
[1769035431989,1.65288229,3015.6,3014.8,3.31692533]
[1769035432816,1.65288229,3015.6,3014.7,3.31707964]
[1769035432986,1.65288229,3015.6,3014.8,0.82534911]
[1769035433424,1.65288229,3015.6,3014.6,4.93641149]
[1769035433425,1.65288229,3015.6,3014.6,1.61925051]
[1769035433608,1.56081337,3015.5,3014.6,1.61925051]
[1769035434215,1.56081337,3015.5,3014.4,4.936655]
[1769035434487,1.56081337,3015.5,3014.6,4.93642496]
[1769035434711,1.56081337,3015.5,3014.7,0.4936425]
[1769035436415,1.56081337,3015.5,3014.6,1.61925051]
[1769035436589,1.56081337,3015.5,3015.1,0.001]
[1769035436996,1.56081337,3015.5,3014.6,1.61925051]
[1769035437392,0.09206892,3015.4,3014.6,1.61925051]
[1769035440219,1.68680094,3015.4,3014.2,6.63525976]
[1769035440516,1.76341211,3015.3,3014.4,1.56140836]
[1769035442017,0.16868009,3015.3,3014.4,1.56140836]
[1769035442600,0.16868009,3015.3,3014.6,1.52233518]
[1769035443018,0.16868009,3015.3,3014.5,1.52233518]
[1769035443921,1.61470609,3015.6,3014.5,1.52233518]
[1769035444297,0.09206892,3015.4,3014.5,1.52233518]
[1769035444486,1.61470609,3015.6,3014.5,1.52233518]
[1769035444686,0.09206892,3015.4,3014.6,4.83952485]
[1769035444924,0.09206892,3015.4,3014.7,0.48395249]
[1769035448619,1.61470609,3015.6,3014.8,1.52233518]
[1769035448819,0.09206892,3015.6,3014.8,1.52233518]
[1769035449550,0.09206892,3015.6,3014.8,1.52333518]
[1769035449701,0.09206892,3015.8,3014.9,1.52233518]
[1769035449902,0.002,3015.9,3014.9,1.52233518]
[1769035450103,0.002,3015.6,3014.9,1.52233518]
[1769035450818,0.002,3015.6,3015.1,1.52233518]
[1769035451140,0.002,3015.6,3015.1,2.33791861]
[1769035452822,0.002,3015.6,3015.3,1.52233518]
[1769035453023,0.002,3015.9,3015.3,1.52233518]
[1769035454941,0.002,3015.9,3015.3,4.83874611]
[1769035455450,0.002,3015.9,3015.3,8.1551657]
[1769035455618,0.002,3015.9,3015.4,0.81551657]
[1769035455942,1.61670609,3016.2,3015.5,1.52233518]
[1769035455943,0.002,3016.2,3015.5,1.52233518]
[1769035456739,0.002,3016.2,3015.6,6.63217932]
[1769035456923,0.002,3016.2,3015.7,1.52233518]
[1769035457122,0.002,3016.2,3015.9,1.52233518]
[1769035458248,0.002,3016.2,3015.9,4.83802471]
[1769035459546,0.002,3016.9,3016.1,1.52233518]
[1769035460353,0.002,3016.9,3016.2,3.31543001]
[1769035460554,0.002,3016.9,3016.2,4.13075717]
[1769035460759,0.002,3016.9,3016.2,5.65309235]
[1769035462035,0.002,3016.6,3016.2,5.65309235]
[1769035463263,0.002,3016.6,3016.2,8.96852236]
[1769035464958,0.002,3016.6,3016.3,1.52233518]
[1769035465157,0.002,3016.6,3016.3,2.41918742]
[1769035467790,0.002,3016.6,3016.3,4.21206589]
[1769035477804,0.002,3016.9,3016.4,1.67749264]
[1769035477973,0.002,3016.9,3016.5,0.01108757]
[1769035478903,0.002,3016.9,3016.4,0.01108757]
[1769035481804,0.002,3016.9,3016.5,3.31510028]
[1769035482005,0.002,3016.9,3016.6,0.01108683]
[1769035483012,0.002,3016.9,3016.6,3.32603886]
[1769035484118,0.002,3016.9,3016.6,4.15790936]
[1769035484283,0.002,3016.9,3016.6,4.14682253]
[1769035485008,0.002,3016.9,3016.6,4.14782253]
[1769035488486,0.002,3016.9,3016.6,0.8328705]
[1769035488691,0.002,3016.9,3016.6,0.001]
[1769035489301,0.002,3016.9,3016.6,3.31598815]
[1769035489708,0.002,3016.9,3016.6,3.31596789]
[1769035492523,0.002,3016.9,3016.6,0.001]
[1769035492821,1.66530627,3016.9,3016.6,0.001]
[1769035493021,1.8318369,3016.9,3016.6,0.001]
[1769035499714,0.002,3016.9,3016.6,0.001]
[1769035501633,1.62499678,3016.9,3016.6,0.001]
[1769035501815,1.62499678,3016.9,3016.0,3.31560167]
[1769035502015,1.62499678,3016.9,3015.9,0.548]
[1769035502325,1.62499678,3016.9,3015.9,3.86374789]
[1769035502500,1.62499678,3016.9,3015.9,3.31574789]
[1769035505316,1.79670335,3016.9,3015.9,3.31574789]
[1769035506417,0.17370657,3016.9,3016.0,1.69533816]
[1769035507948,0.17370657,3016.9,3016.1,1.69533816]
[1769035508152,0.17370657,3016.9,3016.2,0.001]
[1769035508320,0.002,3016.6,3016.2,0.001]
[1769035512652,0.002,3016.6,3016.2,1.69633816]
[1769035514942,0.002,3016.6,3016.2,0.001]
[1769035518067,0.002,3016.9,3016.3,1.69533816]
[1769035519622,0.09406892,3017.5,3016.6,1.69533816]
[1769035519623,0.002,3017.5,3016.6,1.69533816]
[1769035520528,0.002,3016.9,3016.7,1.69533816]
[1769035520753,0.002,3017.5,3016.9,1.69533816]
[1769035524752,0.002,3017.5,3017.0,1.69533816]
[1769035525330,0.00033472,3017.5,3017.0,1.69533816]
[1769035526155,0.00033472,3017.5,3017.2,1.69533816]
[1769035526829,6.322,3018.2,3017.3,1.69533816]
[1769035527026,0.002,3018.2,3017.5,1.69533816]
[1769035528330,0.002,3018.2,3017.5,5.00927144]
[1769035528662,0.002,3018.2,3017.6,1.69533816]
[1769035529037,0.002,3018.2,3017.5,7.54928923]
[1769035529242,0.002,3018.2,3017.6,1.69533816]
[1769035529453,0.002,3018.2,3017.7,0.50093026]
[1769035529679,0.002,3018.2,3017.7,2.19626842]
[1769035529962,0.002,3018.2,3017.8,1.69533816]
[1769035531069,0.002,3018.2,3017.8,5.00898618]
[1769035531249,0.002,3018.2,3017.9,1.61719748]
[1769035531444,1.62299678,3018.8,3018.0,0.82445177]
[1769035531745,3.40437218,3019.1,3018.0,2.44164925]
[1769035531746,1.83240424,3019.1,3018.0,2.44164925]
[1769035532071,1.83240424,3019.1,3018.0,1.61719748]
[1769035532275,1.83240424,3018.9,3018.0,1.61719748]
[1769035532771,0.002,3018.2,3018.0,4.93064084]
[1769035532950,1.83240424,3018.9,3018.1,2.11026156]
[1769035533575,0.09206892,3018.9,3018.1,2.11026156]
[1769035535569,0.09206892,3018.9,3018.1,5.42360062]
[1769035535872,1.74033532,3019.0,3018.1,5.42359748]
[1769035536174,1.74033532,3019.0,3018.2,0.54235975]
[1769035538746,0.09206892,3019.1,3018.3,1.61719748]
[1769035539143,1.83240424,3019.1,3018.3,1.61719748]
[1769035539338,0.09206892,3019.1,3018.3,1.61719748]
[1769035540477,1.74033532,3019.2,3018.3,1.61719748]
[1769035540774,0.09206892,3019.1,3018.3,1.61719748]
[1769035542676,1.83240424,3019.1,3018.3,1.61719748]
[1769035542881,1.74033532,3019.1,3018.3,1.61719748]
[1769035544575,0.002,3018.8,3018.3,1.61719748]
[1769035544985,0.002,3018.8,3018.3,4.93030458]
[1769035545197,0.002,3018.8,3018.4,0.54726643]
[1769035549052,0.002,3018.8,3018.4,2.16446391]
[1769035549753,0.002,3018.8,3018.4,1.61719748]
[1769035550267,0.002,3018.8,3018.4,4.93020135]
[1769035550957,0.002,3018.8,3018.4,3.31300387]
[1769035551882,0.002,3018.8,3018.5,1.61719748]
[1769035553781,0.00033437,3018.8,3018.5,1.61719748]
[1769035553982,0.00033437,3018.8,3018.5,2.11021537]
[1769035556486,0.00033437,3018.8,3018.5,0.49301789]
[1769035559385,0.002,3019.1,3018.5,0.49301789]
[1769035559788,1.66895868,3019.1,3018.5,0.49301789]
[1769035559988,1.66895868,3019.1,3018.3,0.548]
[1769035560188,1.66695868,3018.9,3018.3,0.548]
[1769035561774,1.67276323,3018.7,3018.3,0.548]
[1769035565612,1.67276323,3019.0,3018.3,0.548]
[1769035568385,0.002,3018.5,3018.3,0.548]
[1769035588022,1.67476323,3018.5,3018.3,0.548]
[1769035588228,0.002,3018.5,3018.3,0.548]
[1769035609148,0.002,3018.5,3017.7,7.54246312]
[1769035609447,0.08613835,3016.0,3015.0,4.2287799]
[1769035609633,0.08613835,3016.0,3015.1,0.42287799]
[1769035609944,1.84889446,3016.0,3015.1,0.42287799]
[1769035610717,0.08613835,3015.8,3015.1,0.42287799]
[1769035610918,1.76275611,3015.7,3015.1,0.42287799]
[1769035612262,1.76275611,3015.7,3014.9,3.31681717]
[1769035614314,1.76275611,3015.7,3014.7,6.63414214]
[1769035616044,1.76275611,3015.7,3015.2,0.001]
[1769035619662,1.61549054,3015.5,3015.2,0.001]
[1769035622658,1.61549054,3015.5,3014.7,3.3170625]
[1769035622959,0.17016289,3015.5,3014.8,1.64999103]
[1769035623471,1.91767324,3015.5,3014.7,3.3170625]
[1769035623656,1.74751035,3015.5,3014.7,3.3170625]
[1769035624031,1.74751035,3015.5,3014.5,3.31728473]
[1769035626661,1.74751035,3015.3,3014.5,3.31728473]
[1769035627558,0.08613835,3015.6,3014.8,0.001]
[1769035627762,1.8336487,3015.6,3014.8,0.001]
[1769035628066,1.74751035,3015.4,3014.8,0.001]
[1769035628852,1.8336487,3015.3,3014.8,0.001]
[1769035632329,0.08613835,3015.3,3014.8,0.001]
[1769035632534,1.74751035,3015.4,3014.8,0.001]
[1769035632752,1.8336487,3015.4,3014.8,0.001]
[1769035632968,1.74751035,3015.2,3014.8,0.001]
[1769035633266,1.8336487,3015.2,3014.8,0.001]
[1769035633458,0.08613835,3015.0,3014.2,3.31761849]
[1769035633659,0.08613835,3015.0,3014.1,4.23886569]
[1769035633660,1.74751035,3014.9,3014.1,7.55655927]
[1769035634161,1.74751035,3014.9,3014.2,3.31762218]
[1769035634567,0.08613835,3015.0,3014.2,4.96761321]
[1769035634776,0.08613835,3015.2,3014.2,4.96761321]
[1769035634972,1.98420774,3015.1,3014.2,4.96761321]
[1769035635173,1.98420774,3015.1,3014.2,3.31762218]
[1769035637486,0.08613835,3015.0,3014.2,4.96761321]
[1769035639577,0.08613835,3015.0,3014.2,1.64999103]
[1769035639796,0.30178679,3015.0,3014.5,0.001]
[1769035641591,1.8336487,3014.8,3014.5,0.001]
[1769035641793,2.04929714,3015.0,3014.0,4.96776871]
[1769035641957,2.04929714,3015.0,3014.1,1.64999103]
[1769035642158,0.22859945,3014.9,3014.1,1.64999103]
[1769035642862,0.08613835,3014.8,3014.1,1.64999103]
[1769035643195,0.08613835,3014.8,3014.1,4.96772798]
[1769035643355,0.08613835,3014.8,3014.1,1.64999103]
[1769035644401,1.8336487,3014.8,3013.9,3.31791105]
[1769035644592,1.8336487,3014.6,3013.9,3.31791105]
[1769035644792,1.8336487,3014.6,3013.8,3.31804954]
[1769035644995,1.8336487,3014.3,3013.1,5.88885672]
[1769035645314,1.8336487,3014.3,3013.3,3.31858093]
[1769035645806,1.8336487,3014.3,3013.4,3.31850028]
[1769035645989,1.8336487,3014.3,3013.3,4.96856132]
[1769035646170,0.08613835,3014.1,3013.4,3.31848897]
[1769035648188,1.8336487,3013.9,3013.2,0.021283]
[1769035649072,1.8336487,3013.7,3013.2,0.021283]
[1769035649274,0.18336487,3013.6,3013.2,0.021283]
[1769035649595,0.08613835,3013.5,3013.2,0.021283]
[1769035649812,1.8336487,3013.5,3013.2,0.021283]
[1769035650101,0.08613835,3013.3,3013.0,4.471283]
[1769035650315,0.08613835,3013.3,3011.9,1.64999103]
[1769035650316,1.8336487,3013.1,3011.9,1.64999103]
[1769035650471,0.08613835,3013.1,3011.9,1.64999103]
[1769035650671,0.08613835,3013.1,3012.2,1.64999103]
[1769035650672,0.08613835,3012.9,3012.2,1.64999103]
[1769035650872,0.27811705,3013.1,3012.3,1.64999103]
[1769035651102,0.08613835,3012.9,3012.3,1.64999103]
[1769035651302,0.1919787,3013.1,3012.4,1.64686778]
[1769035651503,4.55857434,3013.9,3012.4,1.64686778]
[1769035651504,0.31970865,3013.9,3012.4,1.64686778]
[1769035651816,0.08613835,3013.9,3012.5,1.64686778]
[1769035652184,0.08613835,3013.9,3012.8,1.64686778]
[1769035653219,0.08613835,3013.9,3012.9,3.31906136]
[1769035653388,0.08613835,3013.9,3013.0,1.64686778]
[1769035654006,0.08613835,3013.7,3013.0,1.64686778]
[1769035655010,1.61889201,3014.1,3013.0,1.64686778]
[1769035655212,0.08613835,3014.0,3013.0,1.64686778]
[1769035655417,0.08613835,3014.0,3013.1,1.64686778]
[1769035655919,0.08613835,3014.0,3012.8,3.31916451]
[1769035655920,0.08613835,3013.6,3012.9,4.96587135]
[1769035656584,0.08613835,3013.6,3012.9,1.64686778]
[1769035659022,0.08613835,3013.6,3012.9,3.31905632]
[1769035659194,0.08613835,3013.6,3013.0,1.64686778]
[1769035661025,0.08613835,3013.4,3012.7,3.3192817]
[1769035661334,0.08613835,3013.4,3012.7,4.03804525]
[1769035661702,0.08613835,3013.7,3012.8,1.64686778]
[1769035661901,0.08613835,3013.5,3012.8,1.64686778]
[1769035663208,0.08613835,3013.5,3013.0,1.64686778]
[1769035664631,0.08613835,3013.5,3012.8,3.31912826]
[1769035665725,0.08613835,3013.3,3012.7,3.31923822]
[1769035666094,0.08613835,3013.3,3012.7,4.966106]
[1769035666408,0.08613835,3013.5,3012.7,4.966106]
[1769035666608,0.002,3013.4,3012.7,4.966106]
[1769035669302,0.08613835,3013.3,3012.6,0.001]
[1769035669503,0.08613835,3013.1,3012.6,0.001]
[1769035669732,0.08613835,3013.1,3012.1,0.549]
[1769035669733,0.08613835,3012.9,3012.1,0.549]
[1769035670039,0.08613835,3012.7,3012.1,0.549]
[1769035671133,0.08613835,3012.7,3011.9,4.96696486]
[1769035671341,0.08613835,3012.5,3011.6,1.64686778]
[1769035671498,0.08613835,3012.3,3011.6,1.64686778]
[1769035671704,0.08613835,3012.0,3011.2,0.549]
[1769035671930,0.08613835,3012.3,3011.3,1.64686778]
[1769035672435,0.08613835,3012.1,3011.3,1.64686778]
[1769035672729,0.08613835,3012.3,3011.5,3.32055051]
[1769035672929,1.70503036,3012.9,3011.7,1.64686778]
[1769035673234,1.61889201,3012.0,3010.9,1.64686778]
[1769035673402,0.08613835,3012.2,3011.3,1.64686778]
[1769035673615,0.08613835,3012.2,3010.9,6.64253212]
[1769035673616,0.08613835,3012.0,3010.9,9.20699953]
[1769035673805,0.08613835,3011.8,3010.9,1.64686778]
[1769035674010,1.70503036,3011.6,3010.6,4.96842494]
[1769035674264,1.61889201,3011.0,3008.7,1.8124756]
[1769035674413,0.08613835,3011.4,3009.5,1.64686778]
[1769035674414,1.61889201,3011.2,3009.5,1.64686778]
[1769035674736,0.58577577,3011.1,3010.1,1.64686778]
[1769035674936,0.58577577,3011.1,3009.3,9.96909579]
[1769035674937,0.08613835,3010.9,3009.9,4.23886569]
[1769035675140,0.08613835,3011.2,3010.0,1.64686778]
[1769035675311,0.08613835,3011.2,3010.3,1.64686778]
[1769035675624,0.08613835,3011.4,3010.3,1.64686778]
[1769035676022,1.70503036,3011.8,3010.6,1.64686778]
[1769035676349,1.70503036,3011.8,3009.8,3.32241239]
[1769035676350,0.08613835,3010.3,3009.7,1.64686778]
[1769035676519,0.08613835,3009.8,3009.4,1.64686778]
[1769035676720,0.08016514,3009.8,3009.4,1.64686778]
[1769035677040,0.08613835,3010.0,3009.4,2.27435038]
[1769035677358,0.08613835,3010.0,3009.2,4.07914012]
[1769035677359,0.08613835,3009.6,3009.2,0.75602708]
[1769035677739,0.08613835,3009.5,3009.2,0.75602708]
[1769035677945,0.08613835,3010.1,3009.3,1.64686778]
[1769035678109,0.08613835,3009.9,3009.3,1.64686778]
[1769035678316,0.08613835,3010.3,3009.5,1.64686778]
[1769035678835,0.08613835,3010.1,3009.5,1.64686778]
[1769035679045,0.08613835,3010.1,3009.5,1.64786778]
[1769035679214,0.08613835,3010.1,3009.5,1.90314622]
[1769035679413,0.08613835,3010.1,3009.7,1.64686778]
[1769035679733,0.08613835,3010.3,3009.7,1.64686778]
[1769035680740,0.08613835,3010.7,3009.7,1.64686778]
[1769035681416,0.08613835,3010.7,3009.9,1.73576482]
[1769035681726,0.08613835,3010.7,3010.0,1.73576482]
[1769035681916,0.08613835,3010.8,3010.0,1.73576482]
[1769035682113,0.08613835,3011.2,3010.0,1.73576482]
[1769035683047,0.08613835,3011.0,3010.0,1.73576482]
[1769035683234,0.08613835,3011.0,3010.2,1.73576482]
[1769035683435,0.08613835,3011.2,3010.4,1.73576482]
[1769035683836,0.08613835,3011.0,3010.4,1.73576482]
[1769035684655,0.05328835,3011.0,3010.4,1.73576482]
[1769035685945,0.05328835,3011.0,3010.4,2.28476482]
[1769035686158,0.05328835,3011.0,3010.4,5.60657883]
[1769035686359,0.05328835,3011.0,3010.4,5.05757883]
[1769035686536,0.05328835,3011.0,3010.4,5.60657883]
[1769035687454,0.05328835,3011.0,3010.4,5.05757883]
[1769035688854,0.05328835,3011.0,3010.2,3.32203137]
[1769035689060,0.05328835,3011.0,3010.4,1.73576482]
[1769035689261,0.08613835,3011.3,3010.4,1.73576482]
[1769035689434,1.70460138,3011.7,3010.4,1.73576482]
[1769035689638,1.70460138,3011.7,3010.3,0.549]
[1769035689639,0.08613835,3011.4,3010.6,1.73576482]
[1769035689940,0.08613835,3011.7,3010.6,1.73576482]
[1769035690140,0.08613835,3011.9,3010.6,1.73576482]
[1769035690758,0.08613835,3012.1,3010.8,1.73576482]
[1769035690942,0.08613835,3011.9,3011.0,1.73576482]
[1769035691152,0.08613835,3011.9,3011.2,1.73576482]
[1769035691457,0.08613835,3012.2,3011.2,1.73576482]
[1769035691621,0.08613835,3012.0,3011.2,1.73576482]
[1769035691826,0.08613835,3012.2,3011.2,1.73576482]
[1769035692027,0.08613835,3012.0,3011.3,0.549]
[1769035692759,0.08613835,3012.1,3011.2,1.73576482]
[1769035693059,0.08613835,3012.1,3011.1,3.87004546]
[1769035693060,0.08613835,3012.1,3011.3,5.05658971]
[1769035694126,0.08613835,3012.3,3011.4,1.73576482]
[1769035694340,0.08613835,3012.1,3011.4,1.73576482]
[1769035694528,0.08613835,3012.4,3011.4,1.73576482]
[1769035694734,0.08613835,3012.3,3011.4,1.73576482]
[1769035695461,0.08613835,3012.3,3011.5,1.73576482]
[1769035696560,0.08613835,3012.6,3011.6,1.73576482]
[1769035696857,0.08613835,3012.5,3011.6,1.73576482]
[1769035697944,0.08613835,3012.5,3011.7,3.32038383]
[1769035698141,0.08613835,3012.8,3011.8,1.73576482]
[1769035698345,0.27053626,3012.8,3011.9,1.73576482]
[1769035698864,0.08613835,3012.6,3011.8,0.549]
[1769035699165,0.08613835,3012.4,3011.7,5.05614865]
[1769035699578,0.08613835,3012.4,3011.7,3.32038383]
[1769035700768,0.08613835,3012.4,3011.7,5.05614865]
[1769035700946,0.28953622,3012.6,3011.8,1.73576482]
[1769035701146,0.08613835,3012.6,3011.8,1.73576482]
[1769035701962,0.08613835,3012.6,3011.9,3.32016335]
[1769035703570,0.002,3012.1,3011.9,3.32016335]
[1769035703763,0.08613835,3012.6,3011.9,3.32016335]
[1769035703764,0.002,3012.4,3011.9,3.32016335]
[1769035704364,0.002,3012.4,3011.6,1.73576482]
[1769035706442,0.002,3012.4,3011.7,6.64076766]
[1769035706648,0.002,3012.4,3011.8,1.73576482]
[1769035708459,0.08613835,3012.7,3011.9,1.73576482]
[1769035708646,0.08613835,3012.7,3012.1,1.73576482]
[1769035710259,0.08613835,3012.9,3012.2,5.0555975]
[1769035710643,0.08613835,3012.9,3012.3,1.73576482]
[1769035712900,0.08613835,3012.9,3012.1,3.31994289]
[1769035713101,0.27030335,3012.9,3012.1,5.13920477]
[1769035713408,0.27030335,3012.9,3012.2,1.81926188]
[1769035714780,0.08613835,3012.9,3012.2,1.81926188]
[1769035715883,0.002,3012.6,3012.2,1.81926188]
[1769035717312,0.002,3012.6,3012.2,5.13908594]
[1769035717681,0.002,3012.6,3012.3,1.81926188]
[1769035722584,0.08813835,3012.9,3012.3,1.81926188]
[1769035724314,0.08813835,3012.9,3012.1,3.31989446]
[1769035724514,0.08813835,3012.9,3012.2,3.86882782]
[1769035724691,0.27440218,3012.9,3012.2,3.86882782]
[1769035725081,0.27440218,3012.9,3012.2,5.6880897]
[1769035725281,0.08613835,3012.7,3011.9,6.06532741]
[1769035725521,0.08613835,3012.7,3012.0,0.549]
[1769035725522,0.08613835,3012.5,3012.0,0.549]
[1769035729291,0.08613835,3012.5,3012.3,0.001]
[1769035731614,0.08613835,3012.5,3011.9,0.54800192]
[1769035732752,0.08613835,3012.5,3011.9,3.86815676]
[1769035733808,0.08613835,3012.5,3012.0,1.81926188]
[1769035734044,0.002,3012.6,3012.0,1.81926188]
[1769035734902,0.002,3012.6,3011.9,3.86815676]
[1769035735206,0.17764999,3012.5,3011.9,0.54800192]
[1769035735723,0.17764999,3012.5,3011.9,3.86815273]
[1769035736107,0.17764999,3012.5,3011.9,5.68741461]
[1769035736435,0.17764999,3012.5,3011.9,2.3672638]
[1769035736733,0.17764999,3012.5,3011.9,0.54800192]
[1769035737337,0.17764999,3012.5,3011.9,5.68741941]
[1769035737566,0.08813835,3012.6,3012.0,1.81926188]
[1769035738248,1.86263826,3012.6,3012.0,0.549]
[1769035738858,1.86263826,3012.6,3011.8,3.32027359]
[1769035739040,1.86263826,3012.6,3012.0,0.549]
[1769035741555,0.08813835,3012.6,3012.0,0.549]
[1769035742432,0.002,3012.6,3012.1,1.98281653]
[1769035742636,0.002,3012.3,3012.1,1.98281653]
[1769035744257,0.002,3012.3,3012.1,2.53181653]
[1769035745766,0.002,3012.3,3012.2,1.98281653]
[1769035745938,0.002,3012.6,3012.2,1.98281653]
[1769035752172,0.002,3012.6,3012.1,0.549]
[1769035752782,0.002,3012.6,3012.0,1.98281653]
[1769035753079,0.08613835,3012.5,3012.1,0.549]
[1769035754350,0.08613835,3012.5,3012.0,2.53181653]
[1769035755959,0.002,3012.6,3012.1,1.98281653]
[1769035756158,0.002,3012.3,3012.1,1.98281653]
[1769035757677,0.002,3012.6,3012.3,1.98281653]
[1769035758694,0.002,3012.6,3012.1,1.98281653]
[1769035761606,0.002,3012.6,3012.0,0.549]
[1769035762396,0.002,3012.6,3012.0,2.53181653]
[1769035765596,0.002,3012.6,3012.1,1.98281653]
[1769035767902,0.002,3012.6,3012.3,0.001]
[1769035771702,0.002,3012.6,3012.3,1.92287452]
[1769035777317,0.002,3012.6,3012.3,0.001]
[1769035777809,0.002,3012.6,3012.3,1.92287452]
[1769035778013,0.002,3012.6,3012.3,0.001]
[1769035779094,0.002,3012.6,3012.3,1.92287452]
[1769035794756,0.002,3012.6,3012.3,0.001]
[1769035794934,0.002,3012.6,3012.3,1.92287452]